bitfinex/quotes_SOLUSD_20220113
["timestamp","ask_amount","ask_price","bid_price","bid_amount"]
[1642108533253,13.35769994,149.11,149.05,2.682]
[1642108533847,13.61769994,149.11,149.05,2.682]
[1642108534644,13.61769994,149.11,149.04,4.28113249]
[1642108535345,13.61769994,149.11,149.04,2.683]
[1642108535745,11.11769994,149.11,149.04,2.683]
[1642108536848,17.66669994,149.11,149.03,1.59813249]
[1642108537046,23.66669994,149.11,149.03,1.59813249]
[1642108537246,7.0463,149.07,149.03,1.59813249]
[1642108537647,7.5563,149.07,149.03,1.59813249]
[1642108537847,7.5563,149.07,149.01,1.59813249]
[1642108539448,7.5563,149.07,149.04,0.02]
[1642108539648,13.5563,149.07,149.04,0.02]
[1642108541050,7.5563,149.07,149.04,0.02]
[1642108541252,7.0463,149.07,149.04,0.02]
[1642108541653,3.56439993,149.06,149.04,0.02]
[1642108542854,3.56439993,149.06,149.04,1.61813249]
[1642108543654,9.71,149.1,149.05,17.14260113]
[1642108543855,1.92066862,149.12,149.06,2.683]
[1642108544055,1.92066862,149.12,149.06,8.933]
[1642108544455,1.92066862,149.12,149.06,8.683]
[1642108544655,7.0422,149.13,149.07,10.0605]
[1642108544856,1.92066862,149.15,149.06,4.28113249]
[1642108545259,8.18066862,149.15,149.06,4.28113249]
[1642108545556,1.92066862,149.14,149.06,2.683]
[1642108545958,8.43066862,149.14,149.06,2.683]
[1642108546157,7.0429,149.12,149.06,2.683]
[1642108546561,7.5529,149.12,149.06,2.683]
[1642108548161,1.92066862,149.13,149.05,2.752]
[1642108548560,2.17066862,149.13,149.05,8.752]
[1642108548762,2.17066862,149.13,149.06,0.02]
[1642108549061,2.17066862,149.13,149.07,12.7428]
[1642108549260,2.17066862,149.13,149.07,10.0608]
[1642108549661,15.21326862,149.13,149.06,2.702]
[1642108549962,13.2926,149.13,149.06,2.702]
[1642108550463,13.5526,149.13,149.06,2.702]
[1642108550865,1.92066862,149.12,149.06,2.702]
[1642108551061,7.0447,149.09,149.06,0.02]
[1642108551494,7.5547,149.09,149.06,0.02]
[1642108560600,13.5547,149.09,149.06,0.02]
[1642108561201,7.5547,149.09,149.06,0.02]
[1642108562303,7.2947,149.09,149.06,0.02]
[1642108563501,7.5547,149.09,149.06,0.02]
[1642108565002,6.0373,149.1,149.06,0.02]
[1642108565303,1.92066862,149.12,149.06,0.02]
[1642108565703,1.92066862,149.12,149.06,0.09]
[1642108566203,1.92066862,149.13,149.06,10.1512]
[1642108566404,0.51,149.12,149.06,12.8332]
[1642108566605,2.18066862,149.13,149.06,0.09]
[1642108567204,0.26,149.13,149.06,1.68813249]
[1642108567606,2.18066862,149.15,149.06,7.68813249]
[1642108568008,6.0361,149.13,149.06,40.89803249]
[1642108568209,2.18066862,149.15,149.07,2.682]
[1642108568410,0.26,149.13,149.07,2.682]
[1642108568609,2.18066862,149.15,149.07,2.682]
[1642108569012,2.18066862,149.15,149.07,2.932]
[1642108569209,0.26,149.15,149.07,4.53013249]
[1642108569508,2.18066862,149.16,149.07,10.53013249]
[1642108570110,6.0353,149.15,149.07,10.53013249]
[1642108570615,6.2953,149.15,149.07,4.28013249]
[1642108571011,6.5453,149.15,149.07,4.28013249]
[1642108571213,6.5453,149.15,149.07,10.28013249]
[1642108572211,6.5453,149.15,149.07,17.65853249]
[1642108573215,1.92066862,149.17,149.07,17.90853249]
[1642108573415,1.92066862,149.17,149.08,2.682]
[1642108573616,1.92066862,149.17,149.12,10.0563]
[1642108573814,1.92066862,149.17,149.13,16.64918725]
[1642108574014,1.92066862,149.17,149.13,22.64918725]
[1642108574214,1.92066862,149.17,149.13,16.64918725]
[1642108574416,1.92066862,149.2,149.13,16.64918725]
[1642108574714,2.17066862,149.2,149.13,6.0]
[1642108574917,6.0337,149.19,149.13,16.0566]
[1642108575114,6.0337,149.19,149.11,22.7768]
[1642108575315,6.2837,149.19,149.11,22.7768]
[1642108575519,6.2837,149.19,149.11,30.37493249]
[1642108575917,6.5437,149.19,149.11,30.37493249]
[1642108576216,6.5437,149.19,149.11,24.37493249]
[1642108576617,8.46436862,149.19,149.11,22.7768]
[1642108577942,8.21436862,149.19,149.11,22.7768]
[1642108578141,8.21436862,149.19,149.11,32.8348]
[1642108578643,1.92066862,149.18,149.11,32.8348]
[1642108578841,1.92066862,149.18,149.11,38.8348]
[1642108578842,6.0348,149.17,149.11,38.8348]
[1642108579044,6.2948,149.17,149.11,38.8348]
[1642108579243,6.5448,149.17,149.11,38.8548]
[1642108579644,6.2948,149.17,149.11,38.8548]
[1642108580542,6.5448,149.17,149.11,10.078]
[1642108580743,16.2548,149.17,149.11,0.02]
[1642108580942,1.64999521,149.16,149.11,0.02]
[1642108581142,6.0378,149.14,149.11,0.02]
[1642108581644,12.5478,149.14,149.11,0.02]
[1642108581843,6.5478,149.14,149.11,0.02]
[1642108583148,6.2878,149.14,149.11,0.02]
[1642108584945,6.5478,149.14,149.12,6.06439993]
[1642108585146,6.2978,149.14,149.12,6.06439993]
[1642108585349,6.5478,149.14,149.11,0.02]
[1642108589354,6.5478,149.14,149.12,0.02]
[1642108590155,6.2878,149.14,149.12,0.02]
[1642108591460,6.5478,149.14,149.12,0.02]
[1642108591658,1.92066862,149.17,149.12,0.02]
[1642108592657,15.45367779,149.23,149.13,16.35384665]
[1642108592658,1.92066862,149.18,149.13,16.35384665]
[1642108593057,1.92066862,149.18,149.13,22.35384665]
[1642108593657,6.0338,149.19,149.13,26.41014665]
[1642108593858,6.0338,149.19,149.13,16.35384665]
[1642108594058,6.0338,149.19,149.12,2.701]
[1642108594257,6.0338,149.19,149.12,0.02]
[1642108594457,6.0338,149.19,149.11,1.59813249]
[1642108594658,6.0338,149.19,149.13,0.02]
[1642108594860,12.0338,149.19,149.13,0.02]
[1642108595065,12.2938,149.19,149.13,0.02]
[1642108595265,79.9238,149.19,149.13,0.02]
[1642108595467,12.2938,149.19,149.13,0.02]
[1642108595664,1.92066862,149.18,149.13,0.02]
[1642108595865,6.0356,149.16,149.13,0.02]
[1642108596064,6.2956,149.16,149.13,0.02]
[1642108596494,6.5456,149.16,149.13,0.02]
[1642108599500,20.6616,149.16,149.13,0.02]
[1642108600900,20.9116,149.16,149.13,0.02]
[1642108601100,16.83226862,149.16,149.13,0.02]
[1642108601303,14.46626862,149.16,149.13,0.02]
[1642108602101,12.5456,149.16,149.13,0.02]
[1642108602902,6.5456,149.16,149.13,0.02]
[1642108603409,6.2856,149.16,149.13,0.02]
[1642108603606,8.20626862,149.16,149.13,0.02]
[1642108604405,12.2856,149.16,149.13,0.02]
[1642108604610,12.0356,149.16,149.13,0.02]
[1642108604804,12.2956,149.16,149.13,0.02]
[1642108605204,12.0356,149.16,149.13,0.02]
[1642108605604,6.0356,149.16,149.13,0.02]
[1642108606008,6.2856,149.16,149.13,0.02]
[1642108606405,6.5456,149.16,149.13,0.02]
[1642108609510,12.2856,149.16,149.13,0.02]
[1642108610507,12.5456,149.16,149.13,0.02]
[1642108611109,6.5456,149.16,149.13,0.02]
[1642108612009,8.46626862,149.16,149.13,0.02]
[1642108612410,1.92066862,149.16,149.13,0.02]
[1642108612811,1.92066862,149.16,149.14,6.06439993]
[1642108613211,1.92066862,149.16,149.14,3.03219996]
[1642108613411,1.92066862,149.16,149.13,0.02]
[1642108613910,1.92066862,149.16,149.13,10.0765]
[1642108614110,1.92066862,149.18,149.14,6.06439993]
[1642108614611,2.18066862,149.18,149.14,6.06439993]
[1642108615212,0.26,149.18,149.14,6.06439993]
[1642108615611,6.0341,149.18,149.14,6.06439993]
[1642108616012,6.5441,149.18,149.14,6.06439993]
[1642108616214,6.5441,149.18,149.13,0.02]
[1642108618312,6.2941,149.18,149.13,0.02]
[1642108618716,6.5441,149.18,149.13,0.02]
[1642108619715,6.5441,149.18,149.14,0.02]
[1642108619918,8.46476862,149.18,149.14,0.02]
[1642108621916,6.5441,149.18,149.14,0.02]
[1642108622750,8.21476862,149.18,149.14,0.02]
[1642108623422,6.2941,149.18,149.14,0.02]
[1642108623620,1.92066862,149.19,149.14,0.02]
[1642108624024,3.83833803,149.22,149.17,17.4909134]
[1642108624219,3.803e-05,149.22,149.19,86.0]
[1642108624425,5.74367779,149.25,149.21,53.0]
[1642108624619,5.74367779,149.25,149.22,2.68]
[1642108624822,5.74367779,149.25,149.23,10.0493]
[1642108625020,5.74367779,149.25,149.24,32.68]
[1642108625220,7.779e-05,149.25,149.24,32.68]
[1642108625420,7.779e-05,149.25,149.24,32.93]
[1642108625619,9.71,149.31,149.25,56.0]
[1642108625821,15.38748709,149.32,149.25,56.0]
[1642108625822,5.75675412,149.32,149.27,10.0462]
[1642108626221,5.75675412,149.32,149.26,2.678]
[1642108626921,0.02,149.35,149.26,2.678]
[1642108627123,9.86514797,149.33,149.26,12.7251]
[1642108628122,6.0285,149.33,149.26,12.7251]
[1642108628322,6.048,149.35,149.26,10.0471]
[1642108628522,6.27,149.35,149.26,10.0471]
[1642108629323,0.27,149.35,149.26,10.0471]
[1642108629522,3.83652515,149.34,149.26,10.0471]
[1642108629924,4.34652515,149.34,149.26,10.0471]
[1642108630252,10.37462515,149.34,149.26,9.8471]
[1642108630628,20.08462515,149.34,149.21,2.678]
[1642108630825,67.63,149.33,149.21,2.678]
[1642108631025,9.71,149.32,149.21,2.678]
[1642108631226,6.0313,149.27,149.21,2.678]
[1642108631428,11.35999521,149.32,149.21,2.678]
[1642108631429,9.71,149.3,149.21,2.678]
[1642108631626,0.26,149.27,149.21,2.678]
[1642108632230,10.22,149.3,149.21,12.7287]
[1642108632432,16.2495,149.3,149.21,12.7287]
[1642108633531,9.96,149.3,149.21,18.7287]
[1642108633736,9.71,149.3,149.21,19.2387]
[1642108634335,9.71,149.3,149.21,18.9787]
[1642108634533,15.7397,149.3,149.21,2.678]
[1642108634933,15.9997,149.3,149.2,12.7294]
[1642108635335,16.2497,149.3,149.2,12.7294]
[1642108635533,16.2497,149.3,149.2,18.7294]
[1642108635734,15.9897,149.3,149.2,18.7294]
[1642108635934,15.9897,149.3,149.2,18.9794]
[1642108637334,9.96,149.3,149.2,18.9794]
[1642108637534,9.96,149.3,149.2,19.2394]
[1642108637779,9.97,149.3,149.2,19.2394]
[1642108638164,9.97,149.3,149.2,20.88939521]
[1642108638363,9.71,149.34,149.2,20.88939521]
[1642108638562,9.71,149.34,149.2,43.58679521]
[1642108638963,9.71,149.34,149.26,0.07]
[1642108639167,6.0291,149.31,149.26,0.07]
[1642108639965,6.2891,149.31,149.26,0.07]
[1642108640365,6.5391,149.31,149.26,0.07]
[1642108640566,17.89909521,149.31,149.26,0.07]
[1642108640966,23.89909521,149.31,149.26,0.07]
[1642108641165,17.89909521,149.31,149.26,0.07]
[1642108641369,3.83748541,149.3,149.26,0.07]
[1642108641566,6.0315,149.28,149.26,0.07]
[1642108641965,6.5415,149.28,149.26,0.07]
[1642108644468,12.5415,149.28,149.26,0.07]
[1642108644666,6.5415,149.28,149.26,0.07]
[1642108646367,6.2815,149.28,149.26,0.07]
[1642108647071,0.25,149.28,149.26,0.07]
[1642108647469,9.9604,149.32,149.26,3.10219997]
[1642108647668,9.71,149.33,149.26,3.10219997]
[1642108648469,15.7386,149.33,149.26,3.10219997]
[1642108648670,3.837075,149.31,149.26,3.10219997]
[1642108649072,4.087075,149.31,149.26,3.10219997]
[1642108649969,0.51,149.31,149.26,3.10219997]
[1642108650471,4.347075,149.32,149.26,3.10219997]
[1642108651076,0.51,149.32,149.26,3.10219997]
[1642108651470,6.0288,149.32,149.26,3.10219997]
[1642108651870,3.83706154,149.31,149.26,3.10219997]
[1642108652073,4.08706154,149.31,149.26,3.10219997]
[1642108652671,3.83706154,149.31,149.26,3.10219997]
[1642108652872,0.26,149.31,149.26,3.10219997]
[1642108653072,9.97,149.33,149.26,5.78019997]
[1642108653272,3.83685466,149.32,149.26,5.78019997]
[1642108653473,4.09685466,149.32,149.26,5.78019997]
[1642108653877,0.26,149.32,149.26,5.78019997]
[1642108654078,0.26,149.32,149.26,15.82719997]
[1642108654375,0.26,149.34,149.26,16.07719997]
[1642108654577,0.02,149.35,149.26,22.07719997]
[1642108654976,0.02,149.35,149.26,21.82719997]
[1642108655180,6.0476,149.35,149.26,13.14919997]
[1642108655577,9.7976,149.35,149.26,13.14919997]
[1642108655778,9.7976,149.35,149.26,3.10219997]
[1642108655779,11.44759521,149.35,149.26,3.10219997]
[1642108655977,9.71,149.34,149.26,3.10219997]
[1642108656177,6.0292,149.31,149.26,3.10219997]
[1642108656379,9.71,149.34,149.26,0.07]
[1642108656380,9.71,149.3,149.26,0.07]
[1642108656579,10.22,149.3,149.26,0.07]
[1642108656980,36.3233,149.3,149.26,0.07]
[1642108657182,6.0305,149.28,149.26,0.07]
[1642108657580,6.5405,149.28,149.26,0.07]
[1642108657780,6.2905,149.28,149.26,0.07]
[1642108657982,6.5405,149.28,149.26,0.07]
[1642108658583,6.2805,149.28,149.26,0.07]
[1642108659385,6.0305,149.28,149.26,0.07]
[1642108659687,6.2805,149.28,149.26,0.07]
[1642108659886,6.0305,149.28,149.26,0.07]
[1642108660086,6.2905,149.28,149.26,0.07]
[1642108660384,6.2905,149.28,149.27,3.03219997]
[1642108660586,6.2905,149.28,149.26,3.10219996]
[1642108661091,6.2905,149.28,149.26,0.07]
[1642108662490,6.5405,149.28,149.26,0.07]
[1642108662690,6.2905,149.28,149.26,0.07]
[1642108664417,6.5405,149.28,149.26,0.07]
[1642108669823,16.2505,149.28,149.26,0.07]
[1642108670025,35.0,149.27,149.17,2.678]
[1642108670223,6.0335,149.22,149.17,2.678]
[1642108670631,6.2935,149.22,149.16,2.681]
[1642108672427,6.5435,149.22,149.16,2.681]
[1642108672631,22.2535,149.22,149.16,2.681]
[1642108675333,22.2535,149.22,149.16,2.701]
[1642108677837,23.90349521,149.22,149.16,2.701]
[1642108678236,91.53349521,149.22,149.16,0.02]
[1642108679037,3.84014677,149.21,149.16,0.02]
[1642108679236,6.0364,149.19,149.16,0.02]
[1642108679437,15.7464,149.19,149.16,0.02]
[1642108679636,22.2564,149.19,149.16,0.02]
[1642108679837,16.2564,149.19,149.16,0.02]
[1642108680640,15.9964,149.19,149.16,0.02]
[1642108681041,15.7464,149.19,149.16,0.02]
[1642108681850,15.7464,149.19,149.17,6.06439993]
[1642108682045,24.7777,149.24,149.17,6.06439993]
[1642108682347,33.9142,149.26,149.17,12.02439993]
[1642108682880,9.71,149.26,149.17,12.02439993]
[1642108683076,6.0327,149.24,149.18,2.68]
[1642108683280,9.71,149.28,149.18,2.68]
[1642108684078,9.71,149.28,149.18,2.93]
[1642108684278,15.97,149.28,149.18,2.93]
[1642108684677,6.0319,149.26,149.18,2.68]
[1642108685080,12.2919,149.26,149.18,2.68]
[1642108685483,22.0019,149.26,149.18,2.68]
[1642108685678,22.0019,149.26,149.17,23.4814]
[1642108685878,22.2519,149.26,149.17,23.4814]
[1642108686977,22.2519,149.26,149.17,29.7314]
[1642108688186,22.2519,149.26,149.17,39.7851]
[1642108688580,16.2519,149.26,149.17,39.7851]
[1642108688880,0.51,149.26,149.17,39.7851]
[1642108689080,6.5408,149.28,149.18,2.68]
[1642108689280,6.2808,149.28,149.2,10.0513]
[1642108689479,6.2808,149.28,149.2,16.0513]
[1642108689883,6.2808,149.28,149.21,15.74756893]
[1642108690079,6.0308,149.28,149.21,15.74756893]
[1642108690290,9.71,149.29,149.21,25.79876893]
[1642108690483,9.71,149.29,149.21,34.47876893]
[1642108691586,9.97,149.29,149.21,34.47876893]
[1642108692387,16.0004,149.29,149.21,34.47876893]
[1642108692791,15.7504,149.29,149.21,34.47876893]
[1642108694689,9.21,149.29,149.21,34.47876893]
[1642108694891,9.78,149.33,149.21,34.72876893]
[1642108695090,0.07,149.33,149.21,58.47166893]
[1642108697605,0.07,149.33,149.22,9.71]
[1642108697805,0.07,149.33,149.27,10.0451]
[1642108698006,0.07,149.33,149.28,18.50544424]
[1642108698407,0.07,149.33,149.28,24.75544424]
[1642108699007,0.07,149.33,149.28,25.01544424]
[1642108699204,0.07,149.33,149.3,10.0438]
[1642108699605,0.07,149.33,149.31,6.06439993]
[1642108705232,6.0987,149.33,149.31,6.06439993]
[1642108705434,6.0987,149.33,149.25,23.8308]
[1642108705634,6.6087,149.33,149.25,23.8308]
[1642108707943,0.07,149.33,149.25,29.8308]
[1642108708142,0.07,149.33,149.26,2.678]
[1642108708340,0.07,149.33,149.27,10.047]
[1642108709242,0.07,149.33,149.27,16.047]
[1642108709840,0.07,149.33,149.28,2.678]
[1642108710240,0.07,149.33,149.26,10.0476]
[1642108710241,0.07,149.33,149.26,2.678]
[1642108710441,0.07,149.33,149.25,23.8308]
[1642108710641,0.07,149.33,149.26,2.928]
[1642108712241,6.0988,149.33,149.26,2.928]
[1642108712643,0.33,149.33,149.26,2.928]
[1642108712846,0.33,149.33,149.26,8.678]
[1642108713044,0.33,149.33,149.26,2.678]
[1642108713247,0.07,149.33,149.26,2.678]
[1642108713445,0.2,149.36,149.28,67.63]
[1642108713646,5.73449836,149.42,149.3,86.0]
[1642108713846,7.67274768,149.4,149.31,101.1015]
[1642108714149,7.67274768,149.4,149.33,67.63]
[1642108714346,7.67274768,149.4,149.34,26.62645105]
[1642108714547,16.91427638,149.6,149.53,3.49471622]
[1642108714747,15.33730585,149.58,149.54,12.384]
[1642108714947,15.33730585,149.58,149.54,2.924]
[1642108715146,23.11375912,149.61,149.54,2.924]
[1642108715347,23.11375912,149.61,149.54,8.924]
[1642108715750,23.11375912,149.61,149.54,18.9517]
[1642108715947,23.11375912,149.61,149.55,17.3680335]
[1642108716148,22.61375912,149.61,149.56,2.674]
[1642108716348,22.61375912,149.61,149.57,9.71]
[1642108717148,13.44023427,149.6,149.57,9.71]
[1642108717549,13.44023427,149.6,149.58,3.03219997]
[1642108717749,13.44023427,149.6,149.57,9.71]
[1642108717951,72.0,149.59,149.55,7.6580335]
[1642108718349,54.0,149.58,149.53,16.89341622]
[1642108718550,54.26,149.58,149.53,16.89341622]
[1642108718750,16.63303745,149.57,149.53,16.89341622]
[1642108718950,17.14303745,149.57,149.53,16.89341622]
[1642108719352,23.16483745,149.57,149.53,16.89341622]
[1642108719752,34.52483266,149.57,149.53,16.89341622]
[1642108719952,38.87483745,149.57,149.53,16.89341622]
[1642108720151,32.87483745,149.57,149.53,13.3987]
[1642108720375,32.87483745,149.57,149.49,2.674]
[1642108720576,32.87483745,149.57,149.46,2.674]
[1642108720976,32.95483745,149.57,149.53,0.04]
[1642108721377,32.99483745,149.57,149.53,0.04]
[1642108721577,38.99483745,149.57,149.53,0.04]
[1642108721979,38.74483745,149.57,149.53,0.04]
[1642108722177,32.74483745,149.57,149.53,0.04]
[1642108723479,38.74483745,149.57,149.53,0.04]
[1642108723977,38.99483745,149.57,149.53,0.04]
[1642108726482,32.99483745,149.57,149.53,0.04]
[1642108726883,26.97303745,149.57,149.53,0.04]
[1642108727283,26.72303745,149.57,149.53,0.04]
[1642108727584,0.12,149.57,149.53,0.04]
[1642108727781,0.12,149.57,149.54,2.674]
[1642108727983,0.12,149.57,149.55,6.06439993]
[1642108728384,0.12,149.57,149.55,6.31439993]
[1642108729586,0.12,149.57,149.55,6.06439993]
[1642108729786,0.12,149.57,149.56,41.674]
[1642108729991,0.12,149.57,149.56,39.0]
[1642108730385,0.12,149.57,149.55,6.06439993]
[1642108731488,14.04612812,149.61,149.55,6.06439993]
[1642108732287,5.0161,149.59,149.55,6.06439993]
[1642108732686,1.70491972,149.64,149.55,6.06439993]
[1642108732887,9.71,149.63,149.55,6.06439993]
[1642108733191,5.0159,149.6,149.55,6.06439993]
[1642108733590,5.5259,149.6,149.55,6.06439993]
[1642108733788,12.85843099,149.59,149.56,33.23045669]
[1642108733987,13.36843099,149.59,149.56,33.23045669]
[1642108734288,13.36843099,149.59,149.57,6.06439993]
[1642108735190,17.38123099,149.59,149.57,6.06439993]
[1642108736092,17.17123099,149.59,149.57,6.06439993]
[1642108736291,17.17123099,149.59,149.57,6.10439993]
[1642108736292,13.15843099,149.59,149.57,6.10439993]
[1642108737395,17.17113099,149.59,149.57,0.04]
[1642108738193,26.88113099,149.59,149.57,0.04]
[1642108738593,27.13113099,149.59,149.57,0.04]
[1642108740597,94.76113099,149.59,149.57,0.04]
[1642108740896,27.13113099,149.59,149.57,0.04]
[1642108741998,94.76113099,149.59,149.57,0.04]
[1642108743403,62.0,149.57,149.48,2.674]
[1642108743602,4.0143,149.53,149.48,2.674]
[1642108743801,13.7243,149.53,149.48,2.674]
[1642108744002,13.9843,149.53,149.48,2.674]
[1642108744202,9.97,149.53,149.48,2.674]
[1642108744604,11.88556389,149.53,149.48,2.674]
[1642108744804,2.17556389,149.53,149.45,2.674]
[1642108745004,2.17556389,149.53,149.45,8.924]
[1642108745205,2.17556389,149.53,149.46,35.36999521]
[1642108745206,1.91556389,149.53,149.46,35.36999521]
[1642108745410,1.91556389,149.53,149.47,70.304]
[1642108745607,3.83057152,149.56,149.49,67.63]
[1642108745806,9.71,149.62,149.52,67.63]
[1642108746008,3.83059305,149.58,149.53,2.674]
[1642108746207,3.83059305,149.58,149.54,16.21617495]
[1642108746409,3.83059305,149.58,149.55,2.674]
[1642108746606,9.305e-05,149.58,149.56,6.06439993]
[1642108746807,9.71,149.65,149.57,58.6989]
[1642108747008,9.97,149.65,149.57,58.6989]
[1642108747309,9.97,149.65,149.57,92.4189]
[1642108747507,9.97,149.65,149.57,98.4189]
[1642108747707,9.71,149.65,149.57,52.4189]
[1642108750310,4.0101,149.67,149.57,52.4189]
[1642108750514,4.1483863,149.65,149.57,46.4189]
[1642108750911,4.1483863,149.65,149.57,46.4589]
[1642108751112,8.4190863,149.65,149.57,46.4589]
[1642108751512,4.1483863,149.65,149.57,46.7089]
[1642108751712,9.71,149.68,149.57,46.7089]
[1642108751912,9.71,149.68,149.57,46.4589]
[1642108752116,15.71,149.68,149.57,46.4589]
[1642108752616,12.89762554,149.67,149.57,52.4589]
[1642108752814,12.89762554,149.67,149.57,43.7849]
[1642108753021,17.41762554,149.67,149.57,10.0649]
[1642108753416,9.71,149.66,149.57,0.04]
[1642108753818,16.22,149.66,149.57,0.04]
[1642108754048,10.22,149.66,149.57,0.04]
[1642108754217,4.0111,149.63,149.57,0.04]
[1642108754417,5.91625201,149.62,149.57,0.04]
[1642108755018,6.17625201,149.62,149.57,0.04]
[1642108755422,10.18745201,149.62,149.57,0.04]
[1642108755625,20.14745201,149.62,149.57,0.04]
[1642108756021,26.14745201,149.62,149.57,0.04]
[1642108756922,67.63,149.61,149.57,0.04]
[1642108757121,12.89762554,149.58,149.57,0.04]
[1642108757923,18.89762554,149.58,149.57,0.04]
[1642108758126,22.90972554,149.58,149.57,0.04]
[1642108758725,23.16972554,149.58,149.57,0.04]
[1642108759323,17.16972554,149.58,149.57,0.04]
[1642108762954,0.26,149.58,149.57,0.04]
[1642108763359,6.982357,149.65,149.57,0.04]
[1642108763556,9.71,149.64,149.57,0.04]
[1642108763958,15.03938707,149.63,149.57,0.04]
[1642108764959,19.31068707,149.63,149.57,0.04]
[1642108765560,19.05068707,149.63,149.57,0.04]
[1642108766461,19.30068707,149.63,149.57,0.04]
[1642108766661,9.71,149.62,149.57,0.04]
[1642108766861,4.0116,149.6,149.57,0.04]
[1642108767061,9.71,149.62,149.57,0.04]
[1642108767261,0.26,149.6,149.57,0.04]
[1642108767863,9.97,149.62,149.57,0.04]
[1642108769266,4.0113,149.61,149.57,0.04]
[1642108769466,3.77449048,149.6,149.57,0.04]
[1642108769868,4.03449048,149.6,149.57,0.04]
[1642108770467,8.04599048,149.6,149.57,0.04]
[1642108773370,7.78599048,149.6,149.57,0.04]
[1642108775074,8.04599048,149.6,149.57,0.04]
[1642108775273,9.71,149.59,149.57,0.04]
[1642108775476,70.0132,149.58,149.57,0.04]
[1642108775672,70.0132,149.58,149.47,2.674]
[1642108775873,70.5232,149.58,149.47,2.674]
[1642108776073,15.03938707,149.57,149.47,2.674]
[1642108776276,13.3789,149.56,149.47,2.674]
[1642108776973,13.6389,149.56,149.47,2.924]
[1642108777175,4.0137,149.52,149.47,2.674]
[1642108777375,4.0137,149.52,149.45,24.1869]
[1642108777574,10.5237,149.52,149.43,2.674]
[1642108777774,10.5237,149.52,149.4,2.676]
[1642108778173,5.42448569,149.51,149.39,48.0423]
[1642108778374,3.77449048,149.51,149.39,48.0423]
[1642108778577,13.3851,149.49,149.39,48.0423]
[1642108778776,14.88142986,149.48,149.4,2.676]
[1642108779576,14.88142986,149.48,149.4,0.25]
[1642108779577,4.0152,149.47,149.4,0.25]
[1642108779876,4.0152,149.47,149.41,2.676]
[1642108780303,4.0152,149.47,149.4,2.676]
[1642108780479,4.2752,149.47,149.4,8.676]
[1642108780676,4.2752,149.47,149.4,2.676]
[1642108780879,4.2752,149.47,149.39,2.676]
[1642108781175,4.2752,149.47,149.4,10.037]
[1642108781580,4.0152,149.47,149.4,10.287]
[1642108781780,4.0147,149.48,149.4,10.287]
[1642108781979,4.0147,149.48,149.41,2.676]
[1642108782179,0.25,149.51,149.41,2.676]
[1642108782378,0.25,149.51,149.41,2.926]
[1642108782581,9.96,149.52,149.41,2.676]
[1642108782879,9.96,149.52,149.41,12.6773415]
[1642108782880,24.08670047,149.52,149.41,12.6773415]
[1642108783082,24.34670047,149.52,149.42,2.676]
[1642108783280,37.72880047,149.52,149.42,2.676]
[1642108783882,23.6021,149.52,149.42,2.676]
[1642108784083,4.0141,149.5,149.42,12.9619]
[1642108784280,3.49254593,149.59,149.43,77.34]
[1642108784487,9.71,149.63,149.43,110.04189521]
[1642108784685,9.71,149.63,149.45,67.63]
[1642108784981,17.33488202,149.62,149.48,67.63]
[1642108785182,17.33488202,149.62,149.49,2.174]